fUSD/lending_fUSD_20250117
["ID","MTS","AMOUNT","RATE_DAILY","PERIOD"]
[349282053,1737096693056,-2731.7,0.00024999,2]
[349282054,1737096693065,-1923.81,0.00024999,2]
[349282055,1737096693075,-949.52,0.00024999,2]
[349282056,1737096693084,-1011.44,0.00024999,2]
[349282057,1737096693094,-346.98461568,0.00024999,2]
[349282058,1737096693103,-500.0,0.00024999,2]
[349282059,1737096693113,-2731.7,0.00024999,2]
[349282060,1737096693122,-1923.81,0.00024999,2]
[349282061,1737096693133,-919.06,0.00024999,2]
[349282062,1737096693143,-1011.58049919,0.00024999,2]
[349282063,1737096693152,-2731.7,0.00024999,2]
[349282064,1737096693161,-500.0,0.00024999,2]
[349282065,1737096693171,-1923.81,0.00024999,2]
[349282066,1737096693180,-2731.7,0.00024999,2]
[349282067,1737096693190,-1923.81,0.00024999,2]
[349282068,1737096693199,-500.0,0.00024999,2]
[349282069,1737096693208,-500.0,0.00024999,2]
[349282070,1737096693217,-2731.7,0.00024999,2]
[349282071,1737096693227,-500.0,0.00024999,2]
[349282072,1737096693236,-500.0,0.00024999,2]
[349282073,1737096693246,-1923.81,0.00024999,2]
[349282074,1737096693256,-500.0,0.00024999,2]
[349282075,1737096693266,-2731.7,0.00024999,2]
[349282076,1737096693275,-500.0,0.00024999,2]
[349282077,1737096693285,-1923.81,0.00024999,2]
[349282078,1737096693296,-949.52,0.00024999,2]
[349282079,1737096693306,-500.0,0.00024999,2]
[349282080,1737096693315,-2731.7,0.00024999,2]
[349282081,1737096693325,-1923.81,0.00024999,2]
[349282082,1737096693335,-500.0,0.00024999,2]
[349282083,1737096693345,-500.0,0.00024999,2]
[349282084,1737096693354,-2731.7,0.00024999,2]
[349282085,1737096693364,-919.06,0.00024999,2]
[349282086,1737096693374,-500.0,0.00024999,2]
[349282087,1737096693384,-500.0,0.00024999,2]
[349282088,1737096693393,-1923.81,0.00024999,2]
[349282089,1737096693403,-2731.7,0.00024999,2]
[349282090,1737096693414,-500.0,0.00024999,2]
[349282091,1737096693423,-1923.81,0.00024999,2]
[349282092,1737096693433,-2731.88500842,0.00024999,2]
[349282093,1737096693443,-500.0,0.00024999,2]
[349282094,1737096693452,-919.06,0.00024999,2]
[349282095,1737096693462,-500.0,0.00024999,2]
[349282096,1737096693472,-949.52,0.00024999,2]
[349282097,1737096693482,-1923.81,0.00024999,2]
[349282098,1737096693491,-500.0,0.00024999,2]
[349282099,1737096693501,-500.0,0.00024999,2]
[349282100,1737096693511,-500.0,0.00024999,2]
[349282101,1737096693522,-500.0,0.00024999,2]
[349282102,1737096693532,-500.0,0.00024999,2]
[349282103,1737096693541,-1923.81,0.00024999,2]
[349282104,1737096693551,-500.0,0.00024999,2]
[349282105,1737096693560,-919.06,0.00024999,2]
[349282106,1737096693570,-1923.81,0.00024999,2]
[349282107,1737096693579,-500.0,0.00024999,2]
[349282108,1737096693588,-949.52,0.00024999,2]
[349282109,1737096693598,-500.0,0.00024999,2]
[349282110,1737096693607,-500.0,0.00024999,2]
[349282111,1737096693616,-1923.81,0.00024999,2]
[349282112,1737096693626,-500.0,0.00024999,2]
[349282113,1737096693635,-500.0,0.00024999,2]
[349282114,1737096693644,-500.0,0.00024999,2]
[349282115,1737096693653,-919.06,0.00024999,2]
[349282116,1737096693662,-500.0,0.00024999,2]
[349282117,1737096693672,-500.0,0.00024999,2]
[349282118,1737096693681,-1923.91405116,0.00024999,2]
[349282119,1737096693691,-368.08,0.00024999,2]
[349282120,1737096693700,-949.72095597,0.00024999,2]
[349282121,1737096693709,-500.0,0.00024999,2]
[349282122,1737096693718,-500.0,0.00024999,2]
[349282123,1737096693727,-500.0,0.00024999,2]
[349282124,1737096693736,-500.0,0.00024999,2]
[349282125,1737096693745,-500.0,0.00024999,2]
[349282126,1737096693754,-264785.1800011,0.00025,30]
[349282127,1737096693767,-493.42092675,0.00025,30]
[349282128,1737096693782,-500.0,0.00024999,2]
[349282129,1737096693791,-661.4798076,0.00025,30]
[349282130,1737096694144,-500.0,0.00024999,2]
[349282131,1737096694154,-157.69699616,0.00024999,2]
[349282132,1737096694541,-342.30300384,0.00024999,2]
[349282133,1737096694550,-260.57699616,0.00024999,2]
[349282134,1737096694561,-658.48300384,0.00024999,2]
[349282135,1737096694570,-362.33600177,0.00024999,2]
[349282136,1737096694600,-19.26412155,0.00024999,2]
[349282137,1737096694624,-118.39987668,0.00024999,2]
[349282138,1737096694633,-500.0,0.00024999,2]
[349282139,1737096694642,-208.90342029,0.00024999,2]
[349282140,1737096694655,-291.09657971,0.00024999,2]
[349282141,1737096694664,-443.55342029,0.00024999,2]
[349282142,1737096694950,-56.44657971,0.00024999,2]
[349282143,1737096694959,-257.35267593,0.00024999,2]
[349282144,1737096694971,-242.64732407,0.00024999,2]
[349282145,1737096694980,-408.15267593,0.00024999,2]
[349282146,1737096694995,-91.84732407,0.00024999,2]
[349282147,1737096695005,-327.63718593,0.00024999,2]
[349282148,1737096695016,-172.36281407,0.00024999,2]
[349282149,1737096695025,-156.32299595,0.00024999,2]
[349282150,1737096695659,2000.0,0.00023014,30]
[349282151,1737096695699,2000.0,0.0002274,30]
[349282152,1737096695732,2000.0,0.00022466,30]
[349282153,1737096695768,2000.0,0.00022192,30]
[349282154,1737096803520,164.72,0.00010137,2]
[349282156,1737097256058,350.09542464,0.0001,2]
[349282157,1737097634137,-164.68,0.00012329,2]
[349282158,1737097634159,-500.0,0.0001648,2]
[349282159,1737097634184,-167.56,0.0001868,2]
[349282160,1737097634210,-787.51574056,0.00021839,2]
[349282161,1737097644110,-168.40408111,0.00021839,2]
[349282162,1737097652095,-204.0,0.0002139,2]
[349282163,1737097652119,-797.15917833,0.00021839,2]
[349282164,1737097652144,-211.551,0.00021839,2]
[349282165,1737097652167,-512.04,0.00021839,2]
[349282166,1737097652192,-204.0,0.0002206,2]
[349282167,1737097652215,-204.0,0.0002273,2]
[349282168,1737097652238,-38.77719704,0.00023183,2]
[349282169,1737097722629,2000.0,0.0002319,30]
[349282176,1737097832026,-545.26481987,0.00023183,2]
[349282177,1737097832035,-300.0,0.00023204,2]
[349282178,1737097832044,-319.49542917,0.00023205,30]
[349282179,1737097832055,-1680.50457083,0.00023205,30]
[349282180,1737097832065,-2000.0,0.00023205,30]
[349282181,1737097832074,-1458.74058233,0.00023205,30]
[349282182,1737097832097,-541.25941767,0.00023205,30]
[349282183,1737097832107,-2000.0,0.00023205,30]
[349282184,1737097832116,-2000.0,0.00023205,30]
[349282185,1737097832126,-2000.0,0.00023205,30]
[349282186,1737097832135,-2000.0,0.00023205,30]
[349282187,1737097832145,-2000.0,0.00023205,30]
[349282188,1737097832154,-1000.0,0.00023209,2]
[349282189,1737097832163,-200.0,0.00023242,2]
[349282190,1737097832173,-200.0,0.00023247,2]
[349282191,1737097832183,-500.0,0.00023258,2]
[349282192,1737097832195,-250.0,0.00023272,2]
[349282198,1737097832386,-150.0,0.00023291,2]
[349282201,1737097832411,-204.0,0.0002341,2]
[349282203,1737097832421,-2000.0,0.00023425,30]
[349282205,1737097832431,-2000.0,0.00023425,30]
[349282207,1737097832440,-2000.0,0.00023562,30]
[349282208,1737097832450,-2000.0,0.00023562,30]
[349282209,1737097832459,-1058.0,0.00023607,10]
[349282210,1737097832469,-1058.0,0.00023607,10]
[349282211,1737097832479,-171.43,0.00023656,2]
[349282212,1737097832488,-1059.13560071,0.0002366,7]
[349282213,1737097832498,-171.43,0.00023662,2]
[349282214,1737097832510,-171.43,0.00023668,2]
[349282215,1737097832519,-610.45908597,0.00023674,2]
[349282216,1737097832529,-171.43,0.00023675,2]
[349282217,1737097832539,-171.43,0.00023681,2]
[349282218,1737097832549,-171.43,0.00023687,2]
[349282219,1737097832559,-171.43,0.00023693,2]
[349282220,1737097832571,-187.44,0.00023695,2]
[349282221,1737097832581,-2000.0,0.00023699,30]
[349282222,1737097832591,-2000.0,0.00023699,30]
[349282223,1737097832602,-171.43,0.00023699,2]
[349282224,1737097832611,-171.43,0.00023706,2]
[349282225,1737097832621,-171.43,0.00023712,2]
[349282226,1737097832631,-171.43,0.00023718,2]
[349282227,1737097832641,-171.43,0.00023724,2]
[349282228,1737097832650,-171.43,0.00023731,2]
[349282229,1737097832659,-171.43,0.00023737,2]
[349282230,1737097832669,-171.43,0.00023743,2]
[349282231,1737097832679,-670.12,0.00023745,2]
[349282232,1737097832688,-171.43,0.00023749,2]
[349282233,1737097832697,-171.43,0.00023755,2]
[349282234,1737097832706,-171.43,0.00023762,2]
[349282235,1737097832716,-171.43,0.00023768,2]
[349282236,1737097832725,-669.47883399,0.0002377,2]
[349282237,1737097832735,-13725.38865215,0.00023771,2]
[349282238,1737097832747,-454.92529219,0.00023771,2]
[349282239,1737097832758,-2020.53714292,0.00023771,2]
[349282240,1737097832781,-481.84490047,0.00023771,2]
[349282242,1737097838033,-302.516,0.00023771,2]
[349282247,1737097840086,-3584.51801227,0.00023771,2]
[349282248,1737097840096,-171.43,0.00023774,2]
[349282249,1737097840106,-565.4629103,0.00023828,2]
[349282250,1737097840115,-1125.77,0.00023829,2]
[349282251,1737097840125,-2000.0,0.00023836,30]
[349282252,1737097840136,-2000.0,0.00023836,30]
[349282253,1737097840146,-2000.0,0.00023973,30]
[349282254,1737097840155,-2000.0,0.00023973,30]
[349282255,1737097840165,-204.0,0.0002408,2]
[349282256,1737097840174,-610.45908595,0.00024083,2]
[349282257,1737097840184,-512.04,0.00024103,2]
[349282258,1737097840197,-2000.0,0.0002411,30]
[349282259,1737097840207,-2000.0,0.0002411,30]
[349282260,1737097840216,-500.0,0.00024164,2]
[349282261,1737097840227,-2751.0,0.00024164,2]
[349282262,1737097840237,-250.0,0.00024164,2]
[349282263,1737097840248,-2000.0,0.00024247,30]
[349282264,1737097840257,-2000.0,0.00024247,30]
[349282265,1737097840266,-23372.0,0.00024256,2]
[349282266,1737097840276,-229.27446577,0.00024256,2]
[349282267,1737097840284,-2000.0,0.00024384,30]
[349282268,1737097840293,-2000.0,0.00024384,30]
[349282269,1737097840303,-265.7314,0.00024401,2]
[349282270,1737097840312,-610.45908595,0.00024491,2]
[349282271,1737097840321,-606.0332,0.000245,2]
[349282272,1737097840330,-5917.57,0.000245,5]
[349282273,1737097840340,-2000.0,0.00024521,30]
[349282274,1737097840349,-2000.0,0.00024521,30]
[349282275,1737097840358,-2125.98373495,0.00024558,2]
[349282276,1737097840368,-175.29,0.0002458,2]
[349282277,1737097840377,-2125.9837349,0.00024596,2]
[349282278,1737097840613,-18015.4189,0.000246,2]
[349282279,1737097840623,-1601.6522,0.000246,2]
[349282280,1737097840632,-3955.613,0.000246,2]
[349282281,1737097840641,-1000.0,0.000246,2]
[349282282,1737097840651,-6575.5289,0.000246,2]
[349282283,1737097840660,-300.0,0.00024619,2]
[349282284,1737097840670,-2125.9837349,0.00024634,2]
[349282285,1737097840680,-2000.0,0.00024658,30]
[349282286,1737097840690,-2000.0,0.00024658,30]
[349282287,1737097840699,-2125.9837349,0.00024672,2]
[349282288,1737097840709,-500.0,0.000247,2]
[349282289,1737097840718,-2844.0,0.000247,3]
[349282290,1737097840727,-2125.9837349,0.0002471,2]
[349282291,1737097840736,-2125.9837349,0.00024748,2]
[349282292,1737097840745,-204.0,0.0002475,2]
[349282293,1737097840754,-16710.6011,0.00024759,2]
[349282294,1737097840763,-2125.9837349,0.00024786,2]
[349282295,1737097840772,-500.0,0.00024799,2]
[349282296,1737097840781,-500.0,0.000248,2]
[349282297,1737097840791,-1000.0,0.000248,2]
[349282298,1737097840801,-2125.9837349,0.00024824,2]
[349282299,1737097840810,-1058.0,0.00024824,2]
[349282300,1737097840819,-2125.9837349,0.00024862,2]
[349282301,1737097840830,-2500.0,0.00024896,2]
[349282302,1737097840839,-201.95186107,0.00024897,2]
[349282303,1737097840848,-170.30473414,0.00024898,2]
[349282304,1737097840857,-217.6129,0.00024898,2]
[349282305,1737097840866,-170.30473412,0.00024898,2]
[349282306,1737097840877,-170.30473412,0.00024899,2]
[349282307,1737097840886,-170.30473412,0.00024899,2]
[349282308,1737097840895,-170.30473412,0.000249,2]
[349282309,1737097840904,-215.09248392,0.000249,2]
[349282310,1737097840915,-268.0,0.000249,2]
[349282311,1737097840925,-170.30473412,0.000249,2]
[349282312,1737097840934,-610.45908595,0.000249,2]
[349282313,1737097840944,-200.000001,0.000249,2]
[349282314,1737097840953,-3141.93957268,0.000249,2]
[349282315,1737097840963,-261.04811402,0.000249,2]
[349282316,1737097840973,-1008.0,0.000249,2]
[349282317,1737097840982,-2125.9837349,0.000249,2]
[349282318,1737097840992,-2000.0,0.00024932,30]
[349282319,1737097841001,-194.5,0.0002499,30]
[349282320,1737097841011,-1500.39146476,0.0002499,2]
[349282321,1737097841020,-500.0,0.00024996,2]
[349282322,1737097841029,-1082.78,0.00024996,2]
[349282323,1737097841038,-488.73,0.00024996,2]
[349282324,1737097841047,-500.0,0.00024996,2]
[349282325,1737097841055,-500.0,0.00024996,2]
[349282326,1737097841064,-500.0,0.00024996,2]
[349282327,1737097841074,-500.0,0.00024996,2]
[349282328,1737097841083,-500.0,0.00024996,2]
[349282329,1737097841091,-500.0,0.00024996,2]
[349282330,1737097841101,-500.0,0.00024996,2]
[349282331,1737097841110,-500.0,0.00024996,2]
[349282332,1737097841119,-1105.37,0.00024996,2]
[349282333,1737097841128,-4257.67,0.00024996,2]
[349282334,1737097841137,-500.0,0.00024996,2]
[349282335,1737097841146,-307.976849,0.00024996,2]
[349282336,1737097841155,-500.0,0.00024996,2]
[349282337,1737097841164,-500.0,0.00024996,2]
[349282338,1737097841174,-500.0,0.00024996,2]
[349282339,1737097841183,-501.6524947,0.00024996,2]
[349282340,1737097841195,-500.0,0.00024996,2]
[349282341,1737097841204,-284.588037,0.00024996,2]
[349282342,1737097841213,-1906.39,0.00024996,2]
[349282343,1737097841223,-500.0,0.00024996,2]
[349282344,1737097841233,-159.42828,0.00024996,2]
[349282345,1737097841243,-510.95587114,0.00024996,2]
[349282346,1737097841253,-156.850942,0.00024996,2]
[349282347,1737097841262,-500.0,0.00024996,2]
[349282348,1737097841272,-500.0,0.00024996,2]
[349282349,1737097841281,-509.69092421,0.00024996,2]
[349282350,1737097841291,-500.0,0.00024996,2]
[349282351,1737097841300,-500.0,0.00024996,2]
[349282352,1737097841309,-500.0,0.00024996,2]
[349282353,1737097841319,-500.0,0.00024996,2]
[349282354,1737097841329,-500.0,0.00024996,2]
[349282355,1737097841339,-500.0,0.00024996,2]
[349282356,1737097841348,-500.0,0.00024996,2]
[349282357,1737097841357,-279.35650623,0.00024996,2]
[349282358,1737097841371,-220.64349377,0.00024996,2]
[349282359,1737097841380,-1240.03,0.00024996,2]
[349282360,1737097841389,-402.35416028,0.00024996,2]
[349282361,1737097841398,-500.0,0.00024996,2]
[349282362,1737097841408,-500.0,0.00024996,2]
[349282363,1737097841417,-500.0,0.00024996,2]
[349282364,1737097841426,-864.07,0.00024996,2]
[349282365,1737097841435,-500.0,0.00024996,2]
[349282366,1737097841444,-500.0,0.00024996,2]
[349282367,1737097841454,-507.06310627,0.00024996,2]
[349282368,1737097841463,-500.0,0.00024996,2]
[349282369,1737097841472,-500.0,0.00024996,2]
[349282370,1737097841482,-500.0,0.00024996,2]
[349282371,1737097841492,-500.0,0.00024996,2]
[349282372,1737097841502,-179.38,0.00024996,2]
[349282373,1737097841511,-500.0,0.00024996,2]
[349282374,1737097841520,-977.91,0.00024996,2]
[349282375,1737097841530,-500.0,0.00024996,2]
[349282376,1737097841539,-500.0,0.00024996,2]
[349282377,1737097841549,-500.0,0.00024996,2]
[349282378,1737097841558,-500.0,0.00024996,2]
[349282379,1737097841567,-500.0,0.00024996,2]
[349282380,1737097841578,-500.00128527,0.00024996,2]
[349282381,1737097841587,-500.0,0.00024996,2]
[349282382,1737097841597,-500.0,0.00024997,2]
[349282383,1737097841606,-500.0,0.00024997,2]
[349282384,1737097841616,-501.82146112,0.00024997,2]
[349282385,1737097841625,-500.0,0.00024997,2]
[349282386,1737097841635,-500.0,0.00024997,2]
[349282387,1737097841644,-500.0,0.00024997,2]
[349282388,1737097841653,-502.46124254,0.00024997,2]
[349282389,1737097841663,-502.75284392,0.00024997,2]
[349282390,1737097841672,-502.13864959,0.00024997,2]
[349282391,1737097841682,-500.0,0.00024997,2]
[349282392,1737097841691,-501.94581277,0.00024997,2]
[349282393,1737097841700,-500.0,0.00024997,2]
[349282394,1737097841709,-577.34402924,0.00024997,2]
[349282395,1737097841719,-500.0,0.00024997,2]
[349282396,1737097841728,-500.0,0.00024997,2]
[349282397,1737097841738,-503.5652404,0.00024997,2]
[349282398,1737097841747,-500.0,0.00024997,2]
[349282399,1737097841757,-500.0,0.00024997,2]
[349282400,1737097841766,-500.0,0.00024997,2]
[349282401,1737097841775,-380.94536789,0.00024997,2]
[349282402,1737097841788,-120.79300672,0.00024997,2]
[349282403,1737097841797,-500.0,0.00024997,2]
[349282404,1737097841806,-100.34438198,0.00024997,2]
[349282405,1737097841818,-402.35226862,0.00024997,2]
[349282406,1737097841829,-128.66853138,0.00024997,2]
[349282407,1737097841840,-373.95697861,0.00024997,2]
[349282408,1737097841850,-500.0,0.00024997,2]
[349282409,1737097841859,-500.88270513,0.00024997,2]
[349282410,1737097841868,-500.0,0.00024997,2]
[349282411,1737097841878,-502.48969122,0.00024997,2]
[349282412,1737097841887,-500.0,0.00024997,2]
[349282413,1737097841897,-500.0,0.00024997,2]
[349282414,1737097841906,-90.34724505,0.00024997,2]
[349282415,1737097841918,-410.95586085,0.00024997,2]
[349282416,1737097841927,-119.73673752,0.00024997,2]
[349282417,1737097841939,-361.08194027,0.00024997,2]
[349282418,1737097841950,-21.17777999,0.00024997,2]
[349282419,1737097841960,-502.15903211,0.00024997,2]
[349282420,1737097841969,-502.73354237,0.00024997,2]
[349282421,1737097841979,-62.84770526,0.00024997,2]
[349282435,1737097842853,-317.21311,0.00024997,2]
[349282444,1737097845775,-500.0,0.00024996,2]
[349282446,1737097845785,-500.0,0.00024996,2]
[349282447,1737097845795,-125.23954297,0.00024997,2]
[349282448,1737097845805,-502.45276908,0.00024997,2]
[349282449,1737097845815,-500.95480784,0.00024997,2]
[349282450,1737097845825,-500.0,0.00024997,2]
[349282451,1737097845834,-593.06634963,0.00024997,2]
[349282452,1737097845843,-500.0,0.00024997,2]
[349282453,1737097845853,-13.3745946,0.00024997,2]
[349282454,1737097845866,-486.6254054,0.00024997,2]
[349282455,1737097845875,-502.28996702,0.00024997,2]
[349282456,1737097845885,-500.0,0.00024997,2]
[349282457,1737097845895,-500.0,0.00024997,2]
[349282458,1737097845905,-500.0,0.00024997,2]
[349282459,1737097845914,-501.45459565,0.00024997,2]
[349282460,1737097845924,-414.53003193,0.00024997,2]
[349282461,1737097845944,-85.46996807,0.00024997,2]
[349282462,1737097845954,-500.0,0.00024997,2]
[349282463,1737097845964,-500.0,0.00024997,2]
[349282464,1737097845973,-500.0,0.00024997,2]
[349282465,1737097845983,-501.00558522,0.00024997,2]
[349282466,1737097845993,-500.0,0.00024997,2]
[349282467,1737097846003,-500.0,0.00024997,2]
[349282468,1737097846012,-501.44011796,0.00024997,2]
[349282469,1737097846022,-500.0,0.00024997,2]
[349282470,1737097846031,-500.0,0.00024997,2]
[349282471,1737097846041,-500.0,0.00024997,2]
[349282472,1737097846051,-500.0,0.00024997,2]
[349282473,1737097846061,-500.0,0.00024997,2]
[349282474,1737097846071,-500.0,0.00024997,2]
[349282475,1737097846082,-500.0,0.00024997,2]
[349282476,1737097846092,-500.0,0.00024997,2]
[349282477,1737097846102,-500.0,0.00024997,2]
[349282478,1737097846111,-500.0,0.00024997,2]
[349282479,1737097846121,-502.59534447,0.00024997,45]
[349282480,1737097846131,-539.53745584,0.00024997,2]
[349282481,1737097846140,-499.60105463,0.00024997,2]
[349282482,1737097846150,-508.08051121,0.00024997,2]
[349282483,1737097846159,-500.0,0.00024997,2]
[349282484,1737097846169,-500.0,0.00024997,2]
[349282485,1737097846179,-500.0,0.00024997,2]
[349282486,1737097846193,-500.0,0.00024997,2]
[349282487,1737097846202,-500.0,0.00024997,2]
[349282488,1737097846212,-498.55319288,0.00024997,2]
[349282489,1737097846222,-500.0,0.00024997,2]
[349282490,1737097846232,-500.80957133,0.00024997,2]
[349282491,1737097846243,-500.0,0.00024997,2]
[349282492,1737097846253,-500.0,0.00024997,2]
[349282493,1737097846262,-500.0,0.00024997,2]
[349282494,1737097846272,-500.0,0.00024997,2]
[349282495,1737097846282,-500.0,0.00024997,2]
[349282496,1737097846291,-500.0,0.00024997,2]
[349282497,1737097846301,-500.0,0.00024997,2]
[349282498,1737097846311,-500.0,0.00024997,2]
[349282499,1737097846320,-186.71618699,0.00024997,2]
[349282500,1737097846330,-500.0,0.00024997,2]
[349282501,1737097846339,-500.0,0.00024997,2]
[349282502,1737097846352,-500.0,0.00024997,2]
[349282503,1737097846361,-501.48572254,0.00024997,2]
[349282504,1737097846371,-500.0,0.00024997,2]
[349282505,1737097846380,-505.033829,0.00024997,2]
[349282506,1737097846390,-500.0,0.00024997,2]
[349282507,1737097846399,-500.0,0.00024997,2]
[349282508,1737097846409,-500.0,0.00024997,2]
[349282509,1737097846419,-500.0,0.00024997,2]
[349282510,1737097846428,-500.0,0.00024997,2]
[349282511,1737097846438,-502.28016095,0.00024997,2]
[349282512,1737097846447,-500.0,0.00024997,2]
[349282513,1737097846457,-500.0,0.00024997,2]
[349282514,1737097846467,-500.0,0.00024997,2]
[349282515,1737097846477,-500.0,0.00024997,2]
[349282516,1737097846487,-500.0,0.00024997,2]
[349282517,1737097846496,-500.0,0.00024997,2]
[349282518,1737097846506,-500.0,0.00024997,2]
[349282519,1737097846515,-500.0,0.00024997,2]
[349282520,1737097846525,-500.0,0.00024997,2]
[349282521,1737097846534,-500.0,0.00024997,2]
[349282522,1737097846543,-504.29687721,0.00024997,2]
[349282523,1737097846554,-500.0,0.00024997,2]
[349282524,1737097846563,-500.0,0.00024997,2]
[349282525,1737097846573,-500.0,0.00024997,2]
[349282526,1737097846583,-503.08600873,0.00024997,2]
[349282527,1737097846592,-500.0,0.00024997,2]
[349282528,1737097846601,-500.0,0.00024997,2]
[349282529,1737097846611,-500.0,0.00024997,2]
[349282530,1737097846620,-502.82811352,0.00024997,2]
[349282531,1737097846630,-500.0,0.00024997,2]
[349282532,1737097846640,-500.0,0.00024997,2]
[349282533,1737097846649,-503.1290481,0.00024997,2]
[349282534,1737097846658,-500.0,0.00024997,2]
[349282535,1737097846668,-500.0,0.00024997,2]
[349282536,1737097846677,-500.0,0.00024997,2]
[349282537,1737097846687,-503.73157329,0.00024997,2]
[349282538,1737097846696,-500.0,0.00024997,2]
[349282539,1737097846706,-500.0,0.00024997,2]
[349282540,1737097846715,-504.24219222,0.00024997,2]
[349282541,1737097846725,-502.34039768,0.00024997,2]
[349282542,1737097846734,-500.0,0.00024997,2]
[349282543,1737097846743,-500.0,0.00024997,2]
[349282544,1737097846753,-500.0,0.00024997,2]
[349282545,1737097846762,-500.0,0.00024997,2]
[349282546,1737097846771,-500.0,0.00024997,2]
[349282547,1737097846780,-500.0,0.00024997,2]
[349282548,1737097846790,-500.0,0.00024997,2]
[349282549,1737097846799,-500.0,0.00024997,2]
[349282550,1737097846808,-506.20319252,0.00024997,2]
[349282551,1737097846818,-500.60373448,0.00024997,2]
[349282552,1737097846827,-500.0,0.00024997,2]
[349282553,1737097846836,-569.81,0.00024997,2]
[349282554,1737097846845,-500.0,0.00024997,2]
[349282555,1737097846854,-502.06143334,0.00024997,2]
[349282556,1737097846864,-500.0,0.00024997,2]
[349282557,1737097846873,-500.0,0.00024997,2]
[349282558,1737097846883,-500.0,0.00024997,2]
[349282559,1737097846892,-363.03951214,0.00024997,2]
[349282560,1737097846901,-500.0,0.00024997,2]
[349282561,1737097846911,-504.39797832,0.00024997,2]
[349282562,1737097846920,-500.0,0.00024997,2]
[349282563,1737097846929,-500.0,0.00024997,2]
[349282564,1737097846939,-982.2,0.00024997,2]
[349282565,1737097846948,-503.2509682,0.00024997,2]
[349282566,1737097846957,-500.0,0.00024997,2]
[349282567,1737097846966,-500.0,0.00024997,2]
[349282568,1737097846975,-504.32800042,0.00024997,2]
[349282569,1737097846985,-500.0,0.00024997,2]
[349282570,1737097846995,-500.0,0.00024997,2]
[349282571,1737097847004,-503.94497218,0.00024997,2]
[349282572,1737097847014,-500.0,0.00024997,2]
[349282573,1737097847023,-503.3545891,0.00024997,2]
[349282574,1737097847032,-500.0,0.00024997,2]
[349282575,1737097847041,-500.0,0.00024997,2]
[349282576,1737097847051,-504.04511047,0.00024997,2]
[349282577,1737097847061,-507.53323638,0.00024997,2]
[349282578,1737097847080,-349.25985388,0.00024997,2]
[349282579,1737097847094,-500.0,0.00024997,2]
[349282580,1737097847104,-500.0,0.00024997,2]
[349282581,1737097847114,-500.0,0.00024997,2]
[349282582,1737097847125,-89.81047278,0.00024997,2]
[349282583,1737097847148,-410.18952722,0.00024997,2]
[349282584,1737097847158,-500.0,0.00024997,2]
[349282585,1737097847168,-258.82261642,0.00024997,2]
[349282586,1737097847178,-500.0,0.00024997,2]
[349282587,1737097847189,-501.2426619,0.00024997,2]
[349282588,1737097847201,-500.0,0.00024997,2]
[349282589,1737097847211,-500.0,0.00024997,2]
[349282590,1737097847221,-500.0,0.00024997,2]
[349282591,1737097847231,-500.0,0.00024997,2]
[349282592,1737097847243,-500.0,0.00024997,2]
[349282593,1737097847254,-500.0,0.00024997,2]
[349282594,1737097847264,-500.0,0.00024997,2]
[349282595,1737097847275,-501.78873954,0.00024997,2]
[349282596,1737097847286,-500.0,0.00024997,2]